[Event "Indian Rapid Championship 2023-24"]
[Site "Nashik"]
[Date "2024.03.06"]
[Round "9.7"]
[White "Das, Arghyadip"]
[Black "Srihari L"]
[Result "1-0"]
[ECO "B34"]
[WhiteElo "2405"]
[BlackElo "2400"]
[Annotator "TA"]
[PlyCount "89"]
[EventDate "2024.03.02"]
[EventType "swiss"]
[EventCountry "IND"]
[SourceTitle "playchess.com"]
[Source "ChessBase"]
[SourceQuality "1"]
[TimeControl "900+10"]

{[%evp 19,89,11,22,-293,-117,-113,-52,-53,-69,-87,-67,-38,0,-59,-64,-164,-165,-165,-33,-28,-24,-45,-4,-21,27,16,34,32,46,46,42,44,42,44,55,47,52,22,22,19,20,26,82,82,165,156,133,134,429,427,396,252,454,471,812,723,669,633,604,536,914,793,688,693,29950,29956,29961,29963,29974,29974,29970,29963]} 1. e4 {[%emt 0:00:03]} c5 {[%emt 0:00:01]} 2. Nf3 {[%emt 0:00:04]} d6 {[%emt 0:00:01]} 3. d4 {[%emt 0:00:02]} cxd4 {[%emt 0:00:02]} 4. Nxd4 {[%emt 0:00:01]} Nf6 {[%emt 0:00:01]} 5. Nc3 {[%emt 0:00:02]} Nc6 {[%emt 0:00:01]} 6. h3 {[%emt 0:00:04]} g6 {[%emt 0:00:45]} 7. Be3 {[%emt 0:00:02]} Bg7 {[%emt 0:00:02]} 8. Qd2 {[%emt 0:00:01]} O-O {[%emt 0:00:23]} 9. O-O-O {[%emt 0:00:02]} Bd7 {[%emt 0:01:03]} 10. f4 {[%emt 0:02:10]} Rc8 {[%emt 0:00:24]} 11. Nf3 $2 {[%emt 0:01:01][%mdl 8192] [#]} (11. Kb1 $11 {and White stays safe.}) 11... b5 $2 {[%emt 0:05:09]} 12. Bd3 $17 {[%emt 0:01:42] [#]} Nb4 {[%emt 0:02:16]} ({Black should try} 12... Qa5 $1 $17 13. Kb1 Be6) 13. Kb1 $15 {[%emt 0:00:44] Black is slightly better.} Qa5 {[%emt 0:00:30]} 14. a3 {[%emt 0:00:18]} Nxd3 {[%emt 0:00:50]} 15. cxd3 {[%emt 0:00:04]} Be6 {[%emt 0:02:15]} 16. Nd4 {[%emt 0:01:59]} (16. Nd5 $11 Qd8 17. Nxf6+ Bxf6 18. Rc1) 16... b4 {[%emt 0:01:18]} 17. Na2 {[%emt 0:01:56]} ({White should play} 17. Ncb5 $15) 17... Bxa2+ $19 {[%emt 0:00:02]} 18. Kxa2 {[%emt 0:00:01]} Qa6 {[%emt 0:00:43]} (18... Nd5 $1 $19 {[%cal Rd5c3]} 19. Nb3 (19. exd5 $2 Qxd5+ 20. Nb3 bxa3 $19) 19... Qb5 20. exd5 a5 (20... bxa3 21. Qa5 $11)) 19. Qxb4 $15 {[%emt 0:02:31]} Rb8 {[%emt 0:00:00] Wards off Qb5} 20. Qd2 {[%emt 0:00:03]} (20. Qc4 {simplifies} Qxc4+ 21. dxc4 Nxe4 22. Rc1) 20... Nd7 {[%emt 0:00:17]} 21. b4 {[%emt 0:01:05] [#]} Nc5 $1 {[%emt 0:01:27]} 22. Rb1 $1 $11 {[%emt 0:02:46][%cal Bd1b1,Bb1b3,Bb3d3][%mdl 32]} Bxd4 {[%emt 0:00:59]} (22... Nxd3 $2 23. b5 $18) 23. Bxd4 {[%emt 0:00:01]} Nxd3 {[%emt 0:00:12]} 24. Rb3 {[%emt 0:01:05]} Nxf4 {[%emt 0:00:08]} 25. Qxf4 {[%emt 0:00:39] Qe3 would now be deadly.} e5 {[%emt 0:00:01]} 26. Qf1 {[%emt 0:00:22]} ({Much worse is} 26. b5 Qa4 (26... Rxb5 $2 {too greedy.} 27. Qf1 $18) 27. Qd2 (27. Bxe5 dxe5 28. Qxe5 Rfe8 $17) 27... exd4 $17) 26... Qxf1 {[%emt 0:00:01]} 27. Rxf1 {[%emt 0:00:01]} exd4 $14 {[%emt 0:00:01][%mdl 4096] Endgame. KRR-KRR} 28. Rd3 {[%emt 0:00:01]} a5 {[%emt 0:00:35]} 29. Rxd4 {[%emt 0:00:09]} axb4 {[%emt 0:00:02]} 30. axb4 {[%emt 0:00:01][%cal Oa2b3]} Rfe8 {[%emt 0:00:24]} (30... Rb6 $11 {remains equal.}) 31. Rf6 $1 $16 {[%emt 0:00:26]} Rb6 {[%emt 0:00:13]} (31... d5 $16) 32. Kb3 {[%emt 0:00:04]} Kg7 {[%emt 0:00:01]} 33. Rfxd6 {[%emt 0:00:05]} (33. Rdxd6 Rxd6 34. Rxd6 Rxe4) 33... Rxd6 {[%emt 0:00:05][%mdl 8192]} (33... Rb7 $16 {was worth a try.} 34. R6d5 Rb6) 34. Rxd6 $18 {[%emt 0:00:01]} Rxe4 $16 {[%emt 0:00:01] KR-KR} 35. Kc3 {[%emt 0:00:32] aiming for b5.} Kf8 $2 {[%emt 0:00:06]} (35... Re3+ 36. Rd3 Re2) 36. Rd2 {[%emt 0:00:25]} Re3+ {[%emt 0:00:31]} (36... Ke7 $142 37. b5 Ra4) 37. Kc4 $18 {[%emt 0:00:03]} Re4+ {[%emt 0:00:04]} 38. Kc5 {[%emt 0:00:02]} Re5+ {[%emt 0:00:03]} 39. Kd6 {[%emt 0:00:20]} Rb5 {[%emt 0:00:14]} 40. Rb2 {[%emt 0:00:05] Kc6 is the strong threat.} Ke8 {[%emt 0:00:25]} 41. Kc6 {[%emt 0:00:00]} Rb8 {[%emt 0:00:04]} 42. b5 {[%emt 0:00:07][%cal Bb4b5,Bb5b6,Bb6b7][%mdl 32] White mates.} Kd8 {[%emt 0:00:01]} 43. b6 {[%emt 0:00:01]} Rc8+ {[%emt 0:00:04]} 44. Kd6 {[%emt 0:00:06]} Rb8 {[%emt 0:00:06]} 45. b7 {[%emt 0:00:03] What a bad dream for Black.   Weighted Error Value: White=0.29 (precise) /Black=0.62.  Loses game:     	---       	Black=1      Missed win:     	---       	Black=1      Mistake:       	White=2     	Black=7      Inaccurate:     	White=2     	Black=2      OK:         	White=6     	Black=10     Best:        	White=3     	Black=4      Strong:       	White=2     	---} 1-0

[Event "Indian Rapid Championship 2023-24"]
[Site "Nashik"]
[Date "2024.03.06"]
[Round "9.8"]
[White "Shahil Dey"]
[Black "Pimpalkhare Vedant"]
[Result "1/2-1/2"]
[ECO "A14"]
[WhiteElo "2332"]
[BlackElo "2254"]
[Annotator "TA"]
[PlyCount "104"]
[EventDate "2024.03.02"]
[EventType "swiss"]
[EventCountry "IND"]
[SourceTitle "playchess.com"]
[Source "ChessBase"]
[SourceQuality "1"]
[TimeControl "900+10"]

{[%evp 11,104,0,31,10,12,18,27,27,32,28,42,35,48,54,38,49,52,61,67,68,75,69,64,42,59,51,97,13,24,19,81,4,10,6,17,0,18,0,10,10,6,0,3,0,0,0,0,0,0,0,0,0,0,0,0,0,0,-4,0,0,0,0,0,0,0,0,0,0,0,0,0,0,0,0,0,0,0,0,0,0,0,0,0,0,0,0,0,0,0,0,0,0,0,0,0]} 1. g3 {[%emt 0:00:03]} d5 {[%emt 0:00:02]} 2. Bg2 {[%emt 0:00:02]} e6 {[%emt 0:00:02]} 3. Nf3 {[%emt 0:00:02]} Nf6 {[%emt 0:00:01]} 4. O-O {[%emt 0:00:03]} Be7 {[%emt 0:00:02]} 5. c4 {[%emt 0:00:02]} O-O {[%emt 0:00:06]} 6. b3 {[%emt 0:00:01]} a5 {[%emt 0:00:03]} 7. d4 {[%emt 0:00:17]} a4 {[%emt 0:00:29]} 8. Ba3 {[%emt 0:00:53]} axb3 {[%emt 0:02:10]} 9. axb3 {[%emt 0:00:01] White has an edge.} Bxa3 {[%emt 0:00:07]} 10. Nxa3 {[%emt 0:00:03]} Qe7 {[%emt 0:00:13]} 11. Nc2 {[%emt 0:01:04]} Rxa1 {[%emt 0:00:39]} 12. Qxa1 {[%emt 0:00:01]} dxc4 {[%emt 0:00:13]} 13. bxc4 {[%emt 0:00:03]} c5 {[%emt 0:00:38]} 14. Qa3 {[%emt 0:01:02]} Na6 {[%emt 0:00:01]} 15. e3 {[%emt 0:02:49]} Qc7 {[%emt 0:01:00]} 16. Qb3 {[%emt 0:00:21]} Rd8 {[%emt 0:00:43]} 17. Rb1 {[%emt 0:00:03]} Ne4 {[%emt 0:00:56]} 18. Na3 {[%emt 0:01:08]} h6 {[%emt 0:01:55]} (18... Qa5 $14) 19. Qc2 {[%emt 0:00:17]} ({White should play} 19. Nb5 $16 Qa5 20. Qb2) 19... Nd6 $11 {[%emt 0:01:17]} 20. Nb5 {[%emt 0:01:24]} Qb8 {[%emt 0:00:01]} (20... Nxb5 $1 $11 {remains equal.} 21. cxb5 (21. Rxb5 Bd7 $11) 21... cxd4) 21. dxc5 {[%emt 0:00:44] White is more active.} (21. Qb3 $16) 21... Nxc5 {[%emt 0:01:38][%cal Ba6c5,Bc5b7,Bb7d8][%mdl 32] The position is equal.} 22. Rd1 {[%emt 0:01:30] [#] Qd2 is the strong threat.} b6 {[%emt 0:00:31]} 23. Qd2 {[%emt 0:02:47]} Ncb7 {[%emt 0:01:42] White must now prevent ...Nxb5.} 24. Qb4 {[%emt 0:00:45]} Nxb5 {[%emt 0:00:18]} 25. Rxd8+ {[%emt 0:00:01]} Nxd8 {[%emt 0:00:01]} 26. Qxb5 {[%emt 0:00:02] [#] aiming for Qe8+.} Qd6 {[%emt 0:00:34] Threatens to win with ...Qd1+.} 27. Ne5 {[%emt 0:00:22]} Kf8 {[%emt 0:00:37]} 28. Bf3 {[%emt 0:00:52]} Nb7 {[%emt 0:00:42]} 29. Bc6 {[%emt 0:00:48]} Qc5 {[%emt 0:00:35]} 30. Bxb7 {[%emt 0:00:46]} Qxb5 {[%emt 0:00:01]} 31. cxb5 {[%emt 0:00:01]} Bxb7 {[%emt 0:00:01][%mdl 4096] Endgame. KB-KN} 32. Nd7+ {[%emt 0:00:06]} Ke7 {[%emt 0:00:01]} 33. Nxb6 {[%emt 0:00:00]} Kd6 {[%emt 0:00:01]} 34. Na4 {[%emt 0:00:17]} Bd5 {[%emt 0:00:29]} 35. Nc3 {[%emt 0:00:18]} Bc4 {[%emt 0:01:43]} 36. h4 {[%emt 0:00:13]} Kc5 {[%emt 0:00:10]} 37. Ne4+ {[%emt 0:00:17]} Kd5 $1 {[%emt 0:00:28]} 38. b6 {[%emt 0:00:01] Strongly threatening b7.} Ba6 {[%emt 0:00:01]} (38... Kxe4 $2 {too greedy.} 39. b7 e5 40. b8=Q $18 (40. b8=B Ba6 $11)) 39. f3 {[%emt 0:00:29]} f5 {[%emt 0:00:47]} ({But not} 39... Kc6 $6 40. g4 $16) 40. Nc3+ {[%emt 0:00:19]} Kc6 {[%emt 0:00:02]} 41. e4 {[%emt 0:00:37]} Kxb6 {[%emt 0:00:18]} 42. exf5 {[%emt 0:00:20]} exf5 {[%emt 0:00:01]} 43. Nd5+ {[%emt 0:00:03]} Kc5 {[%emt 0:00:08]} 44. Ne7 {[%emt 0:00:03]} Bd3 {[%emt 0:00:05]} 45. Kf2 {[%emt 0:00:03] Hoping for Ke3.} Kd6 {[%emt 0:00:04]} 46. Ng6 {[%emt 0:00:07]} Bb1 {[%emt 0:00:11]} 47. Ke3 {[%emt 0:00:03]} Ke6 {[%emt 0:00:01]} 48. Kf4 {[%emt 0:00:33]} Kf6 {[%emt 0:00:01]} 49. h5 {[%emt 0:00:00]} Ba2 {[%emt 0:00:34]} 50. Ne5 {[%emt 0:00:12]} Be6 {[%emt 0:00:14]} 51. g4 {[%emt 0:00:43]} fxg4 {[%emt 0:00:01]} 52. fxg4 {[%emt 0:00:01]} Bf7 {[%emt 0:00:32] Weighted Error Value: White=0.08 (flawless) /Black=0.07 (flawless) .  Mistake:       	White=2     	Black=2      OK:         	White=24    	Black=22     Best:        	---       	Black=3      Strong:       	---       	Black=1} 1/2-1/2

[Event "Indian Rapid Championship 2023-24"]
[Site "Nashik"]
[Date "2024.03.06"]
[Round "9.9"]
[White "Laxman, R.R."]
[Black "Ayush Sharma"]
[Result "0-1"]
[ECO "A32"]
[WhiteElo "2331"]
[BlackElo "2311"]
[Annotator "TA"]
[PlyCount "106"]
[EventDate "2024.03.02"]
[EventType "swiss"]
[EventCountry "IND"]
[SourceTitle "playchess.com"]
[Source "ChessBase"]
[SourceQuality "1"]
[TimeControl "900+10"]

{[%evp 12,106,0,0,0,0,0,0,14,15,3,6,48,36,29,14,12,12,-3,-4,40,-27,-18,-16,-21,-29,-2,-17,-18,-70,-58,-70,-52,-119,-114,-107,-106,-272,-266,-242,-188,-234,-233,-238,-233,-221,-221,-291,-291,-493,-292,-331,-339,-317,-321,-350,-326,-361,-353,-358,-220,-220,0,-394,-382,-407,-400,-469,-371,-469,-463,-750,-731,-723,-712,-730,-714,-731,-615,-744,-712,-734,-741,-989,-972,-1148,-1129,-1409,-1413,-2403,-1919,-3145,-2298,-29984,-29985,-29984,-29984]} 1. d4 {[%emt 0:00:03]} Nf6 {[%emt 0:00:02]} 2. c4 {[%emt 0:00:01]} e6 {[%emt 0:00:02]} 3. g3 {[%emt 0:00:02]} c5 {[%emt 0:00:02]} 4. Nf3 {[%emt 0:00:02][%cal Bg1f3,Bf3d4,Bd4b5][%mdl 32]} cxd4 {[%emt 0:00:07]} 5. Nxd4 {[%emt 0:00:01]} Qc7 {[%emt 0:00:40]} 6. Nd2 {[%emt 0:01:40]} Nc6 {[%emt 0:00:28]} 7. Nb5 {[%emt 0:00:56]} Qb6 {[%emt 0:00:09]} 8. Bg2 {[%emt 0:00:07]} d5 {[%emt 0:00:55]} 9. O-O {[%emt 0:00:19]} Bd7 {[%emt 0:00:39] Die Stellung ist ausgeglichen.} 10. Nc3 {[%emt 0:00:37]} d4 {[%emt 0:00:16]} 11. Nce4 {[%emt 0:00:03]} Be7 {[%emt 0:01:09]} 12. Nxf6+ {[%emt 0:00:30]} Bxf6 {[%emt 0:00:42]} 13. Ne4 {[%emt 0:00:02]} Be7 {[%emt 0:00:03] Wehrt c5 ab} 14. a3 {[%emt 0:01:05]} f5 {[%emt 0:01:46]} 15. Ng5 {[%emt 0:00:27][%cal Oe2e3]} a5 {[%emt 0:02:34]} 16. e4 {[%emt 0:00:08]} (16. e3 $14) 16... O-O $11 {[%emt 0:00:30]} 17. exf5 {[%emt 0:00:11]} Rxf5 {[%emt 0:00:05]} 18. Ne4 {[%emt 0:00:02]} a4 {[%emt 0:00:40]} 19. Bd2 {[%emt 0:01:51]} Ne5 {[%emt 0:00:53]} 20. c5 {[%emt 0:02:45]} Bxc5 $15 {[%emt 0:00:02]} (20... Qxb2 21. Rb1 Qxa3 22. Rxb7 $16) 21. Nxc5 {[%emt 0:00:02]} Qxc5 {[%emt 0:00:01]} 22. Bb4 {[%emt 0:00:02]} (22. Bxb7 $15 Bc6 23. Bb4 (23. Rc1 Qxc1 24. Bxc1 Nf3+ $17)) 22... Qb6 $17 {[%emt 0:00:24]} 23. Rc1 {[%emt 0:00:03]} Bc6 {[%emt 0:00:52]} 24. Bc5 $2 {[%emt 0:00:40]} (24. Rc5 $17) 24... Qb5 $19 {[%emt 0:00:43]} (24... Qxb2 25. Qxd4 Nf3+ 26. Bxf3 Qxd4 27. Bxd4 $19) 25. Bxc6 {[%emt 0:00:47]} Nxc6 {[%emt 0:00:33]} (25... Qxc6 26. f4) 26. Bd6 {[%emt 0:00:29] Weiss ist schwach auf den weissen Feldern} (26. Bxd4 $142 Rd8 27. Rxc6 Qxc6 28. Qg4) 26... Qd5 {[%emt 0:00:13]} 27. Bb4 {[%emt 0:00:14]} Ne5 {[%emt 0:00:47] Zielt auf ...Nf3+ ab.} 28. f4 {[%emt 0:00:01]} Nc4 {[%emt 0:00:02][%cal Oc4e3]} 29. Rf2 {[%emt 0:00:31]} d3 {[%emt 0:00:33]} 30. Bc3 $2 {[%emt 0:00:18]} (30. Qf3 d2 31. Rd1) 30... b5 {[%emt 0:00:43]} (30... e5 $142 {Droht ...e4 und aus.} 31. Qg4 Raf8) 31. Qg4 {[%emt 0:00:03]} Rf7 {[%emt 0:00:02] Aktives Gegenspiel!} 32. Qf3 {[%emt 0:00:45]} Rd8 {[%emt 0:00:18]} 33. Qxd5 {[%emt 0:00:11]} Rxd5 {[%emt 0:00:02]} (33... exd5 $2 34. Rd1 $17) 34. Re1 {[%emt 0:00:01]} Rfd7 {[%emt 0:00:23]} (34... d2 35. Rd1 $19) 35. Rd1 {[%emt 0:00:01]} Ne3 {[%emt 0:00:25]} 36. Re1 {[%emt 0:00:07] [#]} Nc4 {[%emt 0:00:02]} (36... d2 $1 {[%cal Rd2d1]} 37. Bxd2 Ng4 (37... Rxd2 38. Rxe3 Kf7 39. Re4 $11)) 37. Rd1 $1 {[%emt 0:00:03]} h5 {[%emt 0:00:10]} 38. Rf3 {[%emt 0:00:02]} Kh7 {[%emt 0:00:28]} 39. Re1 {[%emt 0:00:12]} R7d6 {[%emt 0:00:28]} 40. Kf2 {[%emt 0:00:01]} Rc6 {[%emt 0:00:40][%cal Oc4b2]} 41. Kg1 {[%emt 0:00:40] [#]} (41. Rd1 $142 Nxb2 42. Bxb2 Rc2+ 43. Kg1 Rxb2 44. Rfxd3) 41... Nxa3 $1 {[%emt 0:00:53][%cal Oc6c3][%mdl 512]} 42. Rd1 {[%emt 0:00:00] [#]} Rxc3 $1 {[%emt 0:00:13]} 43. bxc3 {[%emt 0:00:02][%mdl 4096] Endspiel. KRR-KRN} d2 {[%emt 0:00:01]} 44. Kf2 {[%emt 0:00:15]} Nc4 {[%emt 0:00:05]} 45. Ke2 {[%emt 0:00:01]} a3 {[%emt 0:00:08] Weiss muss nun ...e5 beachten.} 46. Rff1 {[%emt 0:00:03]} Kg6 {[%emt 0:00:32] ...Kf5 wäre nun fies.} 47. Ra1 {[%emt 0:00:11]} Kf5 {[%emt 0:00:13]} 48. Rfd1 {[%emt 0:00:01]} Ke4 {[%emt 0:00:22] Und ...Rd3 würde nun gewinnen.} 49. Rab1 {[%emt 0:00:07]} Rd3 {[%emt 0:00:33]} 50. Rxb5 {[%emt 0:00:06]} Re3+ {[%emt 0:00:01]} 51. Kf2 {[%emt 0:00:01]} Kd3 {[%emt 0:00:13]} 52. Rb4 {[%emt 0:00:17]} Re2+ {[%emt 0:00:07]} (52... Kxc3 $2 {ist das falsche Schlagen.} 53. Rxc4+ Kd3 54. Rc3+ (54. Ra4 Re2+ 55. Kf1 Rxh2 $14) 54... Kxc3 55. Kxe3 $18) 53. Kf3 {[%emt 0:00:09]} Re1 {[%emt 0:00:12] Gewichteter Fehlerwert: Weiß=0.84/Schwarz=0.21 (präzise) .  Verlustzug:     	Weiß=1     	---        Fehler:       	Weiß=6     	Schwarz=2     Ungenau:       	Weiß=1     	Schwarz=4     OK:         	Weiß=9     	Schwarz=13    Bester:       	Weiß=1     	Schwarz=2     Stark:        	Weiß=1     	---        Brilliant:      	---       	Schwarz=1} 0-1

[Event "Indian Rapid Championship 2023-24"]
[Site "Nashik"]
[Date "2024.03.06"]
[Round "9.10"]
[White "Vaz, Ethan"]
[Black "Vignesh Advaith Vemula"]
[Result "1-0"]
[ECO "B07"]
[WhiteElo "2409"]
[BlackElo "2201"]
[Annotator "TA"]
[PlyCount "47"]
[EventDate "2024.03.02"]
[EventType "swiss"]
[EventCountry "IND"]
[SourceTitle "playchess.com"]
[Source "ChessBase"]
[SourceQuality "1"]
[TimeControl "900+10"]

{[%evp 14,47,55,50,81,79,66,72,69,65,66,58,59,58,65,60,63,63,80,62,66,61,69,54,70,59,97,110,114,127,118,125,152,154,489,477]} 1. e4 {[%emt 0:00:01]} c5 {[%emt 0:00:06]} 2. c3 {[%emt 0:00:18]} d6 {[%emt 0:00:34]} 3. d4 {[%emt 0:00:02]} Nf6 {[%emt 0:00:04]} 4. Bd3 {[%emt 0:00:07]} Nc6 {[%emt 0:00:05]} 5. Nf3 {[%emt 0:00:59]} g6 {[%emt 0:00:06]} 6. O-O {[%emt 0:00:38]} Bg7 {[%emt 0:00:04]} 7. h3 {[%emt 0:00:15]} O-O {[%emt 0:00:06]} 8. Re1 {[%emt 0:00:36]} Qb6 {[%emt 0:03:12]} 9. d5 {[%emt 0:03:34]} Ne5 {[%emt 0:00:14]} 10. Nxe5 {[%emt 0:00:32]} dxe5 {[%emt 0:00:02] White is better.} 11. Nd2 {[%emt 0:00:20]} Ne8 {[%emt 0:00:34]} 12. Nc4 {[%emt 0:01:46]} Qc7 {[%emt 0:00:05]} 13. a4 {[%emt 0:00:52]} Nd6 {[%emt 0:00:48]} 14. Qe2 {[%emt 0:00:31] White is more active.} Bd7 {[%emt 0:01:18]} 15. Bg5 {[%emt 0:00:26][%cal Bc1g5,Bg5h4,Bh4g3,Bg3f4][%mdl 32]} Rfe8 {[%emt 0:00:23]} 16. Bh4 {[%emt 0:01:02]} b6 {[%emt 0:03:55]} 17. Bg3 {[%emt 0:00:23]} Nb7 {[%emt 0:00:04]} 18. Ne3 {[%emt 0:00:55]} Nd6 {[%emt 0:01:29]} 19. f4 {[%emt 0:00:35]} exf4 {[%emt 0:00:00]} 20. Bxf4 {[%emt 0:00:01]} e5 {[%emt 0:00:00] [#]} 21. dxe6 $1 {[%emt 0:00:42]} Bxe6 {[%emt 0:00:00]} 22. Bb5 {[%emt 0:01:27]} Red8 {[%emt 0:02:35]} 23. Nd5 {[%emt 0:00:31]} Qb7 {[%emt 0:00:47] [#]} (23... Bxd5 $16 {is more resistant.} 24. exd5 Rac8) 24. Bc6 $1 {[%emt 0:00:04][%mdl 512] Weighted Error Value: White=0.04 (flawless) /Black=0.45.  Loses game:     	---       	Black=1      Inaccurate:     	---       	Black=1      OK:         	White=6     	Black=4      Best:        	White=1     	---        Strong:       	White=1     	---        Brilliant:      	White=1     	---} 1-0

[Event "Indian Rapid Championship 2023-24"]
[Site "Nashik"]
[Date "2024.03.06"]
[Round "10.1"]
[White "Wagh Suyog"]
[Black "Ghosh, Diptayan"]
[Result "1/2-1/2"]
[ECO "D02"]
[WhiteElo "2250"]
[BlackElo "2559"]
[Annotator "TA"]
[PlyCount "50"]
[EventDate "2024.03.02"]
[EventType "swiss"]
[EventCountry "IND"]
[SourceTitle "playchess.com"]
[Source "ChessBase"]
[SourceQuality "1"]
[TimeControl "900+10"]

{[%evp 9,50,34,27,30,48,44,52,25,27,34,20,20,29,19,28,10,18,14,37,17,16,24,31,25,27,0,35,0,16,0,35,0,14,0,36,0,19,0,35,0,25,0,48]} 1. Nf3 {[%emt 0:00:42]} d5 {[%emt 0:00:05]} 2. g3 {[%emt 0:00:02]} Nd7 {[%emt 0:00:09]} 3. d4 {[%emt 0:00:02]} Nb6 {[%emt 0:00:01]} 4. Nc3 {[%emt 0:00:02]} Nf6 {[%emt 0:00:09]} 5. Bg2 {[%emt 0:00:03]} Bf5 {[%emt 0:00:04]} 6. Nh4 {[%emt 0:00:02]} Bc8 {[%emt 0:00:45]} 7. O-O {[%emt 0:01:31]} g6 {[%emt 0:00:02]} 8. e4 {[%emt 0:00:59] White is slightly better.} dxe4 {[%emt 0:00:02]} 9. Nxe4 {[%emt 0:00:03]} Nxe4 {[%emt 0:00:01]} 10. Bxe4 {[%emt 0:00:01]} Bg7 {[%emt 0:00:01]} 11. c3 {[%emt 0:00:04]} O-O {[%emt 0:00:02]} 12. Qc2 {[%emt 0:00:28]} c6 {[%emt 0:00:05]} 13. Re1 {[%emt 0:00:06]} Be6 {[%emt 0:00:30]} 14. Bg2 {[%emt 0:01:02]} Qd7 {[%emt 0:00:15]} 15. Nf3 {[%emt 0:01:17]} Bf5 {[%emt 0:01:07]} 16. Qb3 {[%emt 0:00:33]} Be6 {[%emt 0:00:02]} 17. Qc2 {[%emt 0:00:01]} Bf5 {[%emt 0:01:21]} 18. Qb3 {[%emt 0:00:01]} Be6 {[%emt 0:00:01]} 19. Qc2 {[%emt 0:00:01]} Bf5 {[%emt 0:00:02]} 20. Qb3 {[%emt 0:00:01]} Be6 {[%emt 0:00:03]} 21. Qc2 {[%emt 0:00:01]} Bf5 {[%emt 0:00:01]} 22. Qb3 {[%emt 0:00:01]} Be6 {[%emt 0:00:07]} 23. Qc2 {[%emt 0:00:01]} Bf5 {[%emt 0:00:31]} 24. Qb3 {[%emt 0:01:11]} Be6 {[%emt 0:00:01]} 25. Qc2 {[%emt 0:00:02]} Bf5 {[%emt 0:00:09] Weighted Error Value: White=0.18 (very precise) /Black=0.03 (flawless) .  Inaccurate:     	White=1     	---        OK:         	White=2     	Black=12     Best:        	---       	Black=1} 1/2-1/2

[Event "Indian Rapid Championship 2023-24"]
[Site "Nashik"]
[Date "2024.03.06"]
[Round "10.2"]
[White "Aronyak Ghosh"]
[Black "Srihari L R"]
[Result "1/2-1/2"]
[ECO "A37"]
[WhiteElo "2517"]
[BlackElo "2490"]
[Annotator "TA"]
[PlyCount "57"]
[EventDate "2024.03.02"]
[EventType "swiss"]
[EventCountry "IND"]
[SourceTitle "playchess.com"]
[Source "ChessBase"]
[SourceQuality "1"]
[TimeControl "900+10"]

{[%evp 24,57,34,38,63,48,67,39,43,43,59,60,52,56,48,50,45,46,29,23,20,13,20,0,0,0,2,0,0,0,8,0,8,0,0,0]} 1. Nf3 {[%emt 0:00:11]} c5 {[%emt 0:00:09]} 2. c4 {[%emt 0:00:30]} Nc6 {[%emt 0:00:03]} 3. Nc3 {[%emt 0:00:33]} g6 {[%emt 0:00:02]} 4. g3 {[%emt 0:01:04]} Bg7 {[%emt 0:00:03]} 5. Bg2 {[%emt 0:00:02]} d6 {[%emt 0:01:12]} 6. d3 {[%emt 0:00:11]} e5 {[%emt 0:01:00]} 7. a3 {[%emt 0:00:24]} Nge7 {[%emt 0:00:24]} 8. O-O {[%emt 0:01:22]} a5 {[%emt 0:00:55]} 9. Bg5 {[%emt 0:01:05]} h6 {[%emt 0:02:08]} 10. Bxe7 {[%emt 0:00:32]} Nxe7 {[%emt 0:00:33]} 11. Rb1 {[%emt 0:00:51]} O-O {[%emt 0:00:35]} 12. Ne1 {[%emt 0:00:22][%cal Bf3e1,Be1c2,Bc2e3,Be3d5][%mdl 32]} Rb8 {[%emt 0:00:41]} 13. Nc2 {[%emt 0:00:43]} Be6 {[%emt 0:00:36]} 14. Ne3 {[%emt 0:00:14]} f5 {[%emt 0:00:37]} 15. Ned5 {[%emt 0:01:05] White is more active.} Kh7 {[%emt 0:00:47] White is slightly better.} 16. b4 {[%emt 0:00:45]} axb4 {[%emt 0:00:37]} 17. axb4 {[%emt 0:00:01]} Nxd5 {[%emt 0:00:43]} 18. Bxd5 {[%emt 0:00:35]} Bxd5 {[%emt 0:00:31]} 19. Nxd5 {[%emt 0:00:02]} b5 {[%emt 0:00:02]} 20. cxb5 {[%emt 0:02:46]} Rxb5 {[%emt 0:00:02]} 21. bxc5 {[%emt 0:00:29]} Rxc5 {[%emt 0:00:58]} 22. e4 {[%emt 0:00:02] The position is equal.} Rf7 {[%emt 0:00:20] Prevents Rb7.} 23. Rc1 {[%emt 0:00:12]} Rxc1 {[%emt 0:01:05]} 24. Qxc1 {[%emt 0:00:01]} f4 {[%emt 0:00:01]} 25. f3 {[%emt 0:00:47]} h5 {[%emt 0:00:31]} 26. Kg2 {[%emt 0:00:21]} fxg3 {[%emt 0:00:36]} 27. hxg3 {[%emt 0:00:10]} Bh6 {[%emt 0:00:04]} 28. Qd1 {[%emt 0:01:35]} Rb7 {[%emt 0:01:09]} 29. Qe2 {[%emt 0:00:39] Weighted Error Value: White=0.08 (flawless) /Black=0.06 (flawless) .  Inaccurate:     	White=1     	---        OK:         	White=1     	Black=5      Best:        	---       	Black=1} 1/2-1/2